[Event "FIDE World Championship 2023"]
[Site "Astana"]
[Date "2023.04.16"]
[Round "6.1"]
[White "Ding, Liren"]
[Black "Nepomniachtchi, Ian"]
[Result "1-0"]
[ECO "D02"]
[WhiteElo "2788"]
[BlackElo "2795"]
[Annotator "TA"]
[PlyCount "87"]
[EventDate "2023.04.09"]
[EventType "match"]
[EventCountry "KAZ"]
[SourceTitle "playchess.com"]
[Source "ChessBase"]
[SourceQuality "1"]
[TimeControl "40/7200:20/3600:900+30"]

{[%evp 9,87,2,16,13,10,20,15,0,9,12,15,11,19,7,8,6,9,8,17,14,13,11,21,11,19,12,26,15,50,48,43,38,55,49,57,41,128,119,119,120,109,104,106,112,99,15,87,104,109,116,114,114,87,93,132,62,173,154,168,166,223,220,222,182,479,479,429,428,360,279,289,231,626,486,29980,29981,29990,29991,29991,29992]} 1. d4 {[%emt 0:00:04]} Nf6 {[%emt 0:00:06]} 2. Nf3 {[%emt 0:00:03]} d5 {[%emt 0:00:12]} 3. Bf4 {[%emt 0:00:03]} c5 {[%emt 0:00:34]} 4. e3 {[%emt 0:00:30]} Nc6 {[%emt 0:00:08]} 5. Nbd2 {[%emt 0:00:06]} cxd4 {[%emt 0:00:10]} 6. exd4 {[%emt 0:00:10] D02: 1 d4 d5 2 Nf3 sidelines, including 2...Nf6 3 g3 and 2...Nf6 3 Bf4.} Bf5 {[%emt 0:00:17]} 7. c3 {[%emt 0:02:37] 7.Bb5 might become the main line.} e6 {[%emt 0:00:40]} 8. Bb5 {[%emt 0:06:33] The position is equal.} Bd6 {[%emt 0:03:34]} 9. Bxd6 {[%emt 0:00:26]} Qxd6 {[%emt 0:00:50]} 10. O-O {[%emt 0:00:03]} O-O {[%emt 0:03:34]} 11. Re1 {[%emt 0:00:05]} h6 {[%emt 0:06:28] [#]} 12. Ne5 $146 {[%emt 0:01:21]} ({Predecessor:} 12. a4 Rfc8 13. a5 Qc7 14. Ne5 Nxe5 15. dxe5 Ne4 16. Nb3 Qxe5 17. f3 Nxc3 18. bxc3 Qxc3 {1-0 Kamsky,G (2677)-Marcus,H (2662) Titled Tuesday intern op1 4th Febr blitz 2020 (6)}) 12... Ne7 {[%emt 0:09:23]} 13. a4 {[%emt 0:00:29]} a6 {[%emt 0:02:23]} 14. Bf1 {[%emt 0:01:45]} Nd7 {[%emt 0:01:42]} 15. Nxd7 {[%emt 0:06:13]} Qxd7 {[%emt 0:00:32]} 16. a5 {[%emt 0:01:21]} Qc7 {[%emt 0:01:13]} 17. Qf3 {[%emt 0:10:05]} Rfc8 {[%emt 0:03:18]} 18. Ra3 {[%emt 0:09:49]} Bg6 {[%emt 0:03:54]} 19. Nb3 {[%emt 0:05:52]} Nc6 {[%emt 0:05:51]} 20. Qg3 {[%emt 0:00:23]} Qe7 {[%emt 0:00:37]} 21. h4 {[%emt 0:14:13]} Re8 {[%emt 0:02:43]} 22. Nc5 {[%emt 0:02:58]} e5 {[%emt 0:04:17]} (22... Bc2 $14) 23. Rb3 {[%emt 0:01:58]} Nxa5 {[%emt 0:02:43]} 24. Rxe5 {[%emt 0:00:05]} Qf6 {[%emt 0:00:29]} 25. Ra3 {[%emt 0:14:19]} Nc4 {[%emt 0:00:10]} 26. Bxc4 {[%emt 0:01:11]} (26. Rxd5 $2 Re1 27. f3 Rb1 $19) 26... dxc4 {[%emt 0:00:57]} 27. h5 {[%emt 0:02:46]} (27. Nxb7 $16 {[%cal Ob7d6] Nd6! is the strong threat.} Rxe5 28. Qxe5 (28. dxe5 Qb6 $16)) 27... Bc2 {[%emt 0:04:57]} (27... Rxe5 $1 $11 {keeps the balance.} 28. Qxe5 (28. dxe5 Qd8 $11) 28... Qxe5 29. dxe5 Bxh5) 28. Nxb7 $16 {[%emt 0:02:29] Black is now going downhill.} Qb6 {[%emt 0:02:23] [#]} 29. Nd6 $1 {[%emt 0:04:29][%mdl 576] Double Attack} Rxe5 {[%emt 0:00:54]} 30. Qxe5 {[%emt 0:05:21]} Qxb2 {[%emt 0:00:35]} 31. Ra5 {[%emt 0:02:13]} (31. Nxc4 Qc1+ 32. Kh2 Bd3 $14) 31... Kh7 {[%emt 0:10:13]} 32. Rc5 {[%emt 0:00:44] White has more active pieces.} (32. Nxc4 $6 Qxc3 33. Rc5 f6 $14) (32. Nxf7 Rf8 33. Nd6 Qxc3 $14) ({White should try} 32. Qe1 $16) 32... Qc1+ {[%emt 0:08:33]} (32... Qxc3 $14 33. Rc7 (33. Nxf7 Bd3 $14) (33. Nxc4 f6 $14) (33. Rxc4 Qd2 $11) 33... Qd2) 33. Kh2 $18 {[%emt 0:00:02][%cal Oc5c7]} f6 {[%emt 0:00:19]} 34. Qg3 {[%emt 0:01:05]} a5 {[%emt 0:02:20]} (34... Bd3 {was worth a try.} 35. Nxc4 Bxc4) 35. Nxc4 {[%emt 0:05:43][%cal Bd6c4,Bc4e3,Be3d5,Bd5e7,Be7g6][%mdl 32]} (35. Rxc4 a4 36. Qf3 (36. Rc7 Qg5 $17) 36... Ra5 $11) 35... a4 {[%emt 0:00:46]} 36. Ne3 $1 {[%emt 0:01:20] Hoping for Rc7.} ({Don't play} 36. Rc7 $6 Qg5 $16) 36... Bb1 $2 {[%emt 0:04:51]} (36... Rg8 37. Rc7 Be4) 37. Rc7 {[%emt 0:00:13][%csl Gc7][%cal Rg3g7]} Rg8 {[%emt 0:00:04]} 38. Nd5 {[%emt 0:01:55][%cal Oc7g7]} Kh8 {[%emt 0:00:05] Black is weak on the dark squares} 39. Ra7 {[%emt 0:02:49] aiming for Ne7.} a3 {[%emt 0:00:28]} 40. Ne7 $40 {[%emt 0:00:00][%mdl 128] Black is in trouble.} Rf8 {[%emt 0:00:00]} (40... Re8 41. Nf5 Qg5) 41. d5 {[%emt 0:20:00] White wants to mate with Qc7.} ({Not} 41. Ng6+ Bxg6 42. hxg6 (42. Qxg6 Rg8 $11) 42... Qd1 $18) 41... a2 {[%emt 0:07:39] [#]} (41... Qe1 $18 42. f3 Qe2) 42. Qc7 $1 {[%emt 0:03:34] White mates.} Kh7 {[%emt 0:01:48] [#]} 43. Ng6 $1 {[%emt 0:01:02][%csl Ga7][%cal Rc7g7][%mdl 576] Discovered Attack} Rg8 {[%emt 0:00:55] [#]} 44. Qf7 $1 {[%emt 0:00:08] Weighted Error Value: White=0.17 (very precise) /Black=0.57} 1-0

[Event "FIDE World Championship 2023"]
[Site "Astana"]
[Date "2023.04.18"]
[Round "7.1"]
[White "Nepomniachtchi, Ian"]
[Black "Ding, Liren"]
[Result "1-0"]
[ECO "C07"]
[WhiteElo "2795"]
[BlackElo "2788"]
[Annotator "TA"]
[PlyCount "74"]
[EventDate "2023.04.09"]
[EventType "match"]
[EventCountry "KAZ"]
[SourceTitle "playchess.com"]
[Source "ChessBase"]
[SourceQuality "1"]
[TimeControl "40/7200:20/3600:900+30"]

{[%evp 13,74,4,28,18,11,0,0,0,0,0,0,0,0,-7,13,7,0,0,48,44,12,0,35,0,0,0,2,0,0,-51,39,66,22,8,16,14,8,-1,0,-15,0,0,0,-6,0,0,0,0,0,-14,0,-8,53,20,172,160,371,322,353,339,597,580,515]} 1. e4 {[%emt 0:00:04]} e6 {[%emt 0:00:45]} 2. d4 {[%emt 0:00:07]} d5 {[%emt 0:00:04]} 3. Nd2 {[%emt 0:00:12]} c5 {[%emt 0:00:09]} 4. Ngf3 {[%emt 0:01:20]} cxd4 {[%emt 0:01:10]} 5. Nxd4 {[%emt 0:00:06]} Nf6 {[%emt 0:00:36]} 6. exd5 {[%emt 0:03:18]} Nxd5 {[%emt 0:00:06]} 7. N2f3 {[%emt 0:02:06]} Be7 {[%emt 0:00:44]} 8. Bc4 {[%emt 0:04:57] 8.g3 gains popularity. C07: French Tarrasch: 3...c5, 4 Ngf3 and 4 exd5 Qxd5.} Nc6 {[%emt 0:02:13]} 9. Nxc6 {[%emt 0:04:55]} bxc6 {[%emt 0:01:43]} 10. O-O {[%emt 0:00:09] The position is equal.} O-O {[%emt 0:00:13]} 11. Qe2 {[%emt 0:00:58]} Bb7 {[%emt 0:17:27] [#]} 12. Bd3 $146 {[%emt 0:07:06]} ({Predecessor:} 12. Ne5 Qc7 13. Bd2 Bd6 14. f4 c5 15. Rae1 Ne7 16. Bd3 Ng6 17. Bxg6 fxg6 18. c4 {0-1 Kruppa,Y (2455)-Dokhoian,Y (2530) URS-ch U26 Uzhgorod 1987}) 12... Qc7 {[%emt 0:04:07]} 13. Qe4 {[%emt 0:11:54][%csl Gd3][%cal Re4h7]} Nf6 {[%emt 0:05:01]} 14. Qh4 {[%emt 0:01:30]} c5 {[%emt 0:21:27]} 15. Bf4 {[%emt 0:01:12]} Qb6 {[%emt 0:05:01]} (15... Qd8 $11 16. Rfd1 h6) 16. Ne5 $14 {[%emt 0:00:52] Threatens to win with Nd7.} Rad8 {[%emt 0:16:07] Against Nd7} 17. Rae1 {[%emt 0:12:57]} g6 {[%emt 0:06:01]} (17... Ba6 $5) 18. Bg5 {[%emt 0:03:04]} Rd4 {[%emt 0:00:06]} 19. Qh3 {[%emt 0:00:39]} Qc7 {[%emt 0:11:55]} (19... Qxb2 $2 20. Rb1 Rxd3 21. Nxd3 (21. Rxb2 Rxh3 22. gxh3 Ba8 $18) 21... Bxg2 22. Kxg2 $18) 20. b3 {[%emt 0:15:50]} Nh5 {[%emt 0:01:39]} 21. f4 {[%emt 0:06:41]} (21. Bh6 $11) 21... Bd6 {[%emt 0:02:11]} (21... Bxg5 $1 $15 22. fxg5 Nf4 {[%mdl 64] Deflection}) 22. c3 {[%emt 0:13:50]} Nxf4 {[%emt 0:00:08][%mdl 64] [#] Remove Defender} 23. Bxf4 {[%emt 0:02:50]} (23. Rxf4 {seems wilder.} Bxe5 24. Bxg6 hxg6 25. cxd4 cxd4 26. Bf6) 23... Rxf4 {[%emt 0:00:05][%mdl 64] Remove Defender} 24. Rxf4 {[%emt 0:00:03]} Bxe5 {[%emt 0:00:03] This pair of bishops is nice.} 25. Rh4 {[%emt 0:00:06]} Rd8 {[%emt 0:01:24]} 26. Be4 {[%emt 0:01:32] Bxb7 is the strong threat.} (26. Rxh7 $2 Rxd3 $19) 26... Bxe4 {[%emt 0:03:23]} 27. Rhxe4 {[%emt 0:00:33]} Rd5 {[%emt 0:01:12]} 28. Rh4 {[%emt 0:05:11]} Qd6 {[%emt 0:02:45]} 29. Qe3 {[%emt 0:01:36]} (29. Rxh7 $2 Rd1 30. Kf2 Rd3 $19) 29... h5 {[%emt 0:01:12]} 30. g3 {[%emt 0:01:04]} Bf6 {[%emt 0:01:50]} 31. Rc4 {[%emt 0:00:57] [#]} h4 $1 {[%emt 0:03:34]} 32. gxh4 {[%emt 0:00:33]} (32. Qf4 $5 {[%cal Rf4f6]} Be5 33. Qxh4 $11) 32... Rd2 {[%emt 0:04:54]} (32... Be5 $11) 33. Re2 {[%emt 0:01:23]} (33. Rxc5 $2 Qxh2+ 34. Kf1 Qg2#) (33. Qg3 {feels hotter.} Qd5 34. Rf1 Be5 35. Qf3) 33... Rd3 {[%emt 0:00:01] This move loses the game for Black.} (33... Rd5 $11) 34. Qxc5 $18 {[%emt 0:03:15]} Rd1+ {[%emt 0:00:01]} (34... Qxc5+ $16 35. Rxc5 Bxc3) 35. Kg2 {[%emt 0:00:33]} Qd3 {[%emt 0:00:00]} 36. Rf2 {[%emt 0:00:50]} Kg7 {[%emt 0:00:26]} (36... Rd2 37. h5 (37. Qxa7 Qd5+ 38. Kg1 Rd1+ 39. Rf1 Rxf1+ 40. Kxf1 Qd3+ 41. Kg1 Qd1+ 42. Kg2 Qd5+ 43. Kg3 Qd3+ 44. Kg2 Qd5+ 45. Kg3 Qd3+ 46. Kg2 Qd5+ $11) 37... Kg7) 37. Rcf4 {[%emt 0:00:29]} (37. Qxa7 $2 {perishes.} Qd5+ 38. Rf3 Rd2+ $19) 37... Qxc3 {[%emt 0:00:14] Weighted Error Value: White=0.09 (flawless) /Black=0.45} 1-0

[Event "FIDE World Championship 2023"]
[Site "Astana"]
[Date "2023.04.20"]
[Round "8.1"]
[White "Ding, Liren"]
[Black "Nepomniachtchi, Ian"]
[Result "1/2-1/2"]
[ECO "E28"]
[WhiteElo "2788"]
[BlackElo "2795"]
[Annotator "TA"]
[PlyCount "89"]
[EventDate "2023.04.09"]
[EventType "match"]
[EventCountry "KAZ"]
[SourceTitle "playchess.com"]
[Source "ChessBase"]
[SourceQuality "1"]
[TimeControl "40/7200:20/3600:900+30"]

{[%evp 11,89,-23,-18,-29,-43,-58,-46,-54,-51,-58,-55,-65,-54,-52,-61,-50,-47,-43,-51,-57,-55,-47,0,0,0,0,0,0,-14,-5,-11,-14,0,-9,246,246,283,302,530,530,497,134,135,136,156,154,143,0,9,0,125,120,669,0,1,10,29,8,126,150,194,206,194,0,0,0,0,0,0,0,0,0,0,0,0,0,0,0,0,0]} 1. d4 {[%emt 0:00:03]} Nf6 {[%emt 0:00:14]} 2. c4 {[%emt 0:00:07]} e6 {[%emt 0:00:06]} 3. Nc3 {[%emt 0:00:04]} Bb4 {[%emt 0:00:05]} 4. e3 {[%emt 0:00:20]} O-O {[%emt 0:00:54]} 5. a3 {[%emt 0:00:19]} Bxc3+ {[%emt 0:00:07]} 6. bxc3 {[%emt 0:00:04]} d6 {[%emt 0:00:10]} 7. Ne2 {[%emt 0:00:14] E28: Nimzo-Indian: Sämisch: 5...0-0 6 e3.} c5 {[%emt 0:03:33]} 8. Ng3 {[%emt 0:00:35]} Nc6 {[%emt 0:00:44]} 9. Ra2 {[%emt 0:00:21] [#] Black is slightly better.} b6 $146 {[%emt 0:03:58]} ({Predecessor:} 9... e5 10. d5 Na5 11. e4 Nd7 12. Bd3 Re8 13. O-O Nf8 14. f4 exf4 15. Bxf4 Ng6 16. Raf2 Nxf4 17. Rxf4 {½-½ Hakobyan,A (2620)-Maghsoodloo,P (2728) Airthings Masters Play In rapid 2023 (7)}) 10. e4 {[%emt 0:01:08]} Ba6 {[%emt 0:01:17]} 11. Bg5 {[%emt 0:02:10]} h6 {[%emt 0:00:36]} 12. h4 {[%emt 0:02:02][%cal Oe4e5]} hxg5 {[%emt 0:06:20]} 13. hxg5 {[%emt 0:00:29] [#] Black must now prevent e5.} g6 $1 {[%emt 0:00:03]} 14. gxf6 {[%emt 0:09:16]} Qxf6 {[%emt 0:00:41][%cal Rc5d4]} 15. e5 {[%emt 0:14:36]} dxe5 {[%emt 0:12:51]} 16. d5 {[%emt 0:00:58]} Ne7 {[%emt 0:10:38]} (16... Rad8 $15 17. Rd2 Na5 18. dxe6 Rxd2 19. Qxd2 Qf4 20. exf7+ Rxf7 21. Qxf4 (21. Qd8+ Rf8 $17) 21... exf4) 17. d6 $11 {[%emt 0:33:03]} Nf5 {[%emt 0:01:07] Strongly threatening ...Bb7.} 18. Ne4 $1 {[%emt 0:00:53]} Qd8 {[%emt 0:00:08]} 19. Qd3 {[%emt 0:14:32] Qh3 is the strong threat.} Kg7 $1 {[%emt 0:01:07]} 20. g4 $132 {[%emt 0:00:04][%cal Bg2g4,Bg4g5][%mdl 2080] [#] aiming for f4. White is fighting back} (20. Qh3 $2 Rh8 21. Qxh8+ Qxh8 22. Rxh8 Rxh8 $19) 20... Bb7 $1 {[%emt 0:02:17][%cal Of5d6] Hoping for ...Nxd6!} 21. Rh3 {[%emt 0:02:25] Prevents Nxd6} (21. gxf5 $2 exf5 22. f3 (22. Qh3 $2 Bxe4 23. f3 Bc6 $19) 22... fxe4 23. fxe4 f5 $19) 21... Nh4 {[%emt 0:20:54] Threatens to win with ...f5.} 22. g5 $1 {[%emt 0:00:11]} Bxe4 $4 {[%emt 0:12:35][%mdl 8192]} (22... Rh8 $1 $11 {and Black is okay.} 23. Qg3 Bxe4 24. Qxe5+ f6 25. Qxe4 fxg5) 23. Qxe4 $18 {[%emt 0:00:03]} Nf5 {[%emt 0:00:35]} 24. Rd2 {[%emt 0:00:49]} (24. Qxe5+ f6 25. gxf6+ (25. Qxe6 $2 Re8 $19) 25... Qxf6 $11) 24... Rh8 $2 {[%emt 0:07:24]} (24... Rb8 25. f4 (25. Qxe5+ f6 $14) 25... Rh8 26. Qxe5+ (26. fxe5 $2 Rxh3 27. Bxh3 Qxg5 $19) 26... f6 27. Rxh8 (27. Qxe6 $2 Re8 $19) 27... fxe5 28. Rxd8 Rxd8) 25. Rxh8 {[%emt 0:10:02]} (25. Qxe5+ f6 26. Qe4 (26. Qxe6 $2 Re8 $19) (26. gxf6+ Qxf6 27. Qe4 Rxh3 $11) 26... Qd7 $16) 25... Qxh8 {[%emt 0:00:40]} 26. d7 $2 {[%emt 0:00:02]} ({Weaker is} 26. Qxe5+ Kg8 27. Qxh8+ Kxh8 $15) (26. Rd3 $1 $18 {[%cal Rd3h3]}) 26... Rd8 $16 {[%emt 0:01:05]} 27. Qxe5+ {[%emt 0:00:03]} Kh7 {[%emt 0:01:39]} 28. Qh2+ {[%emt 0:00:04]} Kg7 {[%emt 0:00:15] [#]} 29. Qe5+ {[%emt 0:00:03]} (29. Qc7 $1 $16) 29... Kh7 $11 {[%emt 0:00:05]} 30. Qh2+ {[%emt 0:00:08]} ({White should try} 30. Qc7 $11) 30... Kg7 $1 $16 {[%emt 0:00:09] [#]} 31. Qc7 {[%emt 0:00:03]} Qh4 $2 {[%emt 0:03:03][%mdl 8192]} 32. Kd1 $2 {[%emt 0:02:40]} ({White has to play} 32. Qxd8 $18 {Bg2 would kill now.} Qe4+ 33. Re2 Qb1+ 34. Kd2 Qb2+ 35. Kd3 Qb1+ 36. Rc2 Qxf1+ 37. Kd2) 32... Qxg5 $11 {[%emt 0:01:29]} 33. Kc2 {[%emt 0:00:02] Dancing on a razor blade. Active counter play!} Qe7 {[%emt 0:02:02]} 34. Bg2 {[%emt 0:01:31][%cal Og2c6] With the idea Bc6!} e5 {[%emt 0:02:15]} (34... Nd4+ $1 $11 35. cxd4 Rxd7) 35. Be4 $1 $16 {[%emt 0:00:32]} (35. Qxa7 $2 e4 36. Qb7 (36. Qxb6 $2 {perishes.} e3 $19) 36... e3 37. fxe3 Nxe3+ 38. Kb3 Nxg2 39. Rxg2 Rxd7 $19) 35... Nh6 {[%emt 0:01:38][%cal Bf5h6,Bh6g4,Bg4f2][%mdl 32]} 36. Qxa7 {[%emt 0:01:10]} Ng4 {[%emt 0:00:36] Black is weak on the light squares} 37. Bf3 $2 {[%emt 0:05:23]} ({But not} 37. Qxb6 Rxd7 38. Rxd7 Qxd7 39. Qxc5 Qa4+ 40. Kd2 Qe8) (37. Kb3 $18) 37... Nxf2 $1 $11 {[%emt 0:01:30] The position is equal.} 38. Rxf2 {[%emt 0:03:13]} e4 {[%emt 0:00:22]} 39. Re2 {[%emt 0:04:22] And now Bg4 would win.} f5 {[%emt 0:01:31] Wards off Bg4} 40. Qxb6 {[%emt 0:00:00][%cal Of3h5] Bh5! would be deadly.} Rxd7 {[%emt 0:00:00]} 41. Qb8 {[%emt 0:14:29][%cal Of3h5]} Qd6 {[%emt 0:21:26]} 42. Qxd6 {[%emt 0:02:00]} Rxd6 {[%emt 0:00:51]} 43. Bxe4 {[%emt 0:00:04]} fxe4 {[%emt 0:00:12]} 44. Rxe4 {[%emt 0:00:03]} Kf6 {[%emt 0:01:31] Prevents Re5} 45. Re8 {[%emt 0:04:05] A brilliant game!   Weighted Error Value: White=0.34/Black=0.38} 1/2-1/2

[Event "FIDE World Championship 2023"]
[Site "Astana"]
[Date "2023.04.21"]
[Round "9.1"]
[White "Nepomniachtchi, Ian"]
[Black "Ding, Liren"]
[Result "1/2-1/2"]
[ECO "C65"]
[WhiteElo "2795"]
[BlackElo "2788"]
[Annotator "TA"]
[PlyCount "163"]
[EventDate "2023.04.09"]
[EventType "match"]
[EventCountry "KAZ"]
[SourceTitle "playchess.com"]
[Source "ChessBase"]
[SourceQuality "1"]
[TimeControl "40/7200:20/3600:900+30"]

{[%evp 9,163,10,11,12,20,14,13,8,25,12,10,0,0,0,0,0,14,8,18,5,12,19,15,0,16,0,58,40,44,46,44,32,33,0,0,0,47,3,0,7,20,30,42,30,48,36,41,28,22,0,0,0,0,0,0,0,0,0,13,15,33,15,41,45,50,42,39,43,60,60,60,58,60,60,60,60,73,52,129,60,79,48,49,47,48,47,60,60,63,60,83,68,68,68,90,90,90,90,97,0,0,0,0,0,0,0,0,0,0,0,0,0,0,0,0,0,0,0,0,0,0,0,0,0,0,0,0,0,0,0,0,0,0,0,0,0,0,0,0,0,0,0,0,0,0,0,0,0,0,0,0,0,0,0,0,0]} 1. e4 {[%emt 0:00:05]} e5 {[%emt 0:00:05]} 2. Nf3 {[%emt 0:00:05]} Nc6 {[%emt 0:00:05]} 3. Bb5 {[%emt 0:00:05]} Nf6 {[%emt 0:00:18]} 4. d3 {[%emt 0:01:27]} Bc5 {[%emt 0:00:26]} 5. c3 {[%emt 0:00:07]} O-O {[%emt 0:00:14]} 6. O-O {[%emt 0:00:17] C65: Ruy Lopez: Berlin Defence (3...Nf6), unusual lines and 4 0-0 Bc5.} d5 {[%emt 0:00:08]} 7. Nbd2 {[%emt 0:00:13]} dxe4 {[%emt 0:00:40]} 8. dxe4 {[%emt 0:00:24]} a5 {[%emt 0:03:30]} 9. a4 {[%emt 0:00:57]} Qe7 {[%emt 0:00:50]} 10. Qc2 {[%emt 0:00:29]} Nb8 {[%emt 0:05:07]} 11. Re1 $1 {[%emt 0:01:43]} Rd8 {[%emt 0:02:05]} 12. h3 {[%emt 0:04:25]} h6 {[%emt 0:00:26]} 13. Nf1 {[%emt 0:00:36]} c6 {[%emt 0:01:05]} 14. Bc4 {[%emt 0:01:58]} Na6 {[%emt 0:00:06]} 15. Ng3 {[%emt 0:03:49]} Qc7 {[%emt 0:00:55] [#]} 16. Ba2 $146 {[%emt 0:19:52]} ({Predecessor:} 16. Qe2 Bf8 17. Be3 Nc5 18. b4 Ncxe4 19. Nxe4 Nxe4 20. Bb6 Qxb6 21. Qxe4 Re8 22. Nxe5 {½-½ De la Rosa Solorzano,J (2426)-Genga,S (2424) W-ch WS/SIM/A/09 email 2021}) 16... b5 {[%emt 0:04:08]} 17. Qe2 {[%emt 0:04:37]} Rb8 {[%emt 0:15:47]} (17... Bf8 $11) 18. Nh4 $1 $14 {[%emt 0:01:38]} Bf8 {[%emt 0:13:00]} 19. Qf3 {[%emt 0:01:50]} bxa4 {[%emt 0:14:44] [#]} 20. Bxh6 $1 {[%emt 0:01:31][%mdl 64] Deflection} Nc5 {[%emt 0:00:03]} (20... gxh6 21. Qxf6 Rd6 22. Qxe5 Rxb2 23. Bc4 $16 (23. Ngf5 Rdd2 $11)) (20... Rxb2 21. Bg5 Be7 22. Ngf5 Rxa2 23. Rxa2 $16) 21. Ng6 {[%emt 0:12:55]} (21. Bg5 $5 {[%cal Rg5f6]} Rd3 22. Qe2 Rxg3 23. fxg3 Nfxe4 24. Bc1 $14) 21... Rxb2 {[%emt 0:07:40] ...Rd3 would be deadly.} (21... gxh6 $2 22. Qxf6 Bg7 23. Qe7 $18 (23. Bxf7+ Kh7 $11)) 22. Nxf8 {[%emt 0:11:09][%cal Of3e3] Threatens to win with Qe3!} Rxf8 {[%emt 0:00:23]} (22... Rd3 $11 {feels stronger.} 23. Be3 Nb3) 23. Bg5 {[%emt 0:02:04]} Nh7 {[%emt 0:03:35] A dynamic duo of knights.} 24. Bc1 {[%emt 0:00:07]} Rb5 {[%emt 0:00:10]} ({Less strong is} 24... a3 25. Bxb2 (25. Bc4 Be6 $11) 25... axb2 26. Rab1 $16) (24... Rc2 $5 {[%cal Rc5b3]}) 25. Ba3 {[%emt 0:00:38]} Re8 {[%emt 0:03:07]} 26. Bc4 {[%emt 0:14:59]} Be6 $1 {[%emt 0:02:38]} 27. Bxe6 {[%emt 0:03:26]} Nxe6 {[%emt 0:05:37]} 28. Nf5 {[%emt 0:00:04]} c5 $1 {[%emt 0:00:04]} 29. Qe2 {[%emt 0:00:22]} Rb3 {[%emt 0:01:24]} 30. Qc4 {[%emt 0:00:05]} Qc6 {[%emt 0:03:24]} 31. Bc1 {[%emt 0:01:12][%cal Ba3c1,Bc1b2,Bb2e5][%mdl 32]} Nf6 {[%emt 0:01:48]} 32. Qxa4 {[%emt 0:02:40]} Qxa4 {[%emt 0:00:33]} 33. Rxa4 {[%emt 0:00:01]} Rxc3 {[%emt 0:03:06]} 34. Bb2 {[%emt 0:00:09]} Rb3 {[%emt 0:00:05]} 35. Bxe5 {[%emt 0:00:08]} Rb4 {[%emt 0:00:11]} 36. Rxa5 {[%emt 0:00:30]} Rxe4 {[%emt 0:00:04]} 37. Rxe4 {[%emt 0:01:04]} Nxe4 {[%emt 0:00:04]} 38. Ra4 {[%emt 0:00:40]} Nd4 {[%emt 0:09:06]} 39. Bxd4 {[%emt 0:00:38]} ({Much weaker is} 39. Nxd4 Rxe5 40. Nc2 Nd2 $11) 39... cxd4 {[%emt 0:00:04]} 40. Rxd4 {[%emt 0:00:00][%mdl 4096] Endgame KRN-KRN} g6 {[%emt 0:00:00]} 41. Ne3 {[%emt 0:00:45]} Kg7 {[%emt 0:00:54]} 42. Rb4 {[%emt 0:01:22]} Ng3 {[%emt 0:06:25][%mdl 64] Deflection} 43. Rb7 {[%emt 0:06:16]} Nf5 {[%emt 0:00:57]} (43... g5 $14) 44. Ng4 {[%emt 0:00:14]} (44. Nxf5+ $16 gxf5 45. g3) 44... Re7 {[%emt 0:02:34]} 45. Rb5 {[%emt 0:01:19]} Re1+ {[%emt 0:03:39]} 46. Kh2 {[%emt 0:00:42]} Re2 {[%emt 0:00:05]} 47. Rb7 {[%emt 0:00:03]} Nd6 {[%emt 0:14:57]} 48. Ra7 {[%emt 0:00:45]} Kf8 {[%emt 0:04:03]} 49. Kg3 {[%emt 0:07:00]} f5 {[%emt 0:03:15]} 50. Kf3 {[%emt 0:01:00]} Re7 {[%emt 0:00:18]} 51. Ra8+ {[%emt 0:00:04]} Re8 {[%emt 0:03:11]} 52. Rxe8+ {[%emt 0:01:32]} Kxe8 $16 {[%emt 0:00:15] KN-KN} 53. Ne5 {[%emt 0:00:30]} g5 {[%emt 0:00:04] [#]} 54. h4 {[%emt 0:20:26]} gxh4 $11 {[%emt 0:00:41] The position is equal.} 55. Kf4 {[%emt 0:01:08] aiming for Nd3.} h3 {[%emt 0:15:34]} 56. gxh3 {[%emt 0:00:50]} Ke7 {[%emt 0:00:01]} 57. Nc6+ {[%emt 0:12:50]} Kf6 {[%emt 0:02:09]} 58. Nd4 {[%emt 0:00:05] Black must now prevent h4.} Ne4 {[%emt 0:01:38]} 59. f3 {[%emt 0:00:23]} Nf2 {[%emt 0:00:29]} 60. h4 {[%emt 0:00:00]} Nd3+ {[%emt 0:00:00]} 61. Kg3 {[%emt 0:00:31]} Kg6 {[%emt 0:01:46]} 62. Ne6 {[%emt 0:00:23] Hoping for Nf4+.} Kf6 {[%emt 0:00:06]} 63. Nf4 {[%emt 0:00:05]} Nb4 {[%emt 0:01:07]} 64. Kf2 {[%emt 0:00:08]} Ke5 {[%emt 0:01:13]} 65. Ke3 {[%emt 0:01:01] And now Nd3+ would win.} Nc2+ {[%emt 0:00:07]} 66. Kd2 {[%emt 0:00:03]} Nd4 {[%emt 0:00:11]} 67. Nd3+ {[%emt 0:00:05]} Kf6 {[%emt 0:01:02]} 68. Ke3 {[%emt 0:00:08]} Nc2+ {[%emt 0:00:34]} 69. Kf4 {[%emt 0:01:03]} Nd4 {[%emt 0:00:01]} 70. Kg3 {[%emt 0:00:45]} Ne2+ {[%emt 0:00:12]} 71. Kf2 {[%emt 0:00:04]} Nd4 {[%emt 0:00:09]} 72. Nf4 {[%emt 0:00:01]} Ke5 {[%emt 0:00:53]} 73. Ne2 {[%emt 0:02:10]} Ne6 {[%emt 0:00:19]} 74. Kg3 {[%emt 0:00:17]} Kf6 {[%emt 0:00:05]} 75. Kg2 {[%emt 0:00:56]} Kg7 {[%emt 0:02:18]} 76. Kf2 {[%emt 0:00:11]} f4 {[%emt 0:02:13]} 77. Kg1 {[%emt 0:01:26]} Kg6 {[%emt 0:01:14]} 78. Kg2 {[%emt 0:00:04]} Kh6 {[%emt 0:00:03]} 79. Nc1 {[%emt 0:00:50]} (79. Kh2 $5) 79... Kh5 {[%emt 0:00:11]} 80. Kh3 {[%emt 0:00:03]} Nd4 {[%emt 0:00:08] Against Ne2} 81. Nd3 {[%emt 0:00:02]} Nxf3 {[%emt 0:00:05]} 82. Nxf4+ {[%emt 0:00:03] Weighted Error Value: White=0.09 (flawless) /Black=0.09 (flawless)} 1/2-1/2